fUSD/lending_fUSD_20260703
["ID","MTS","AMOUNT","RATE_DAILY","PERIOD"]
[426964436,1783077034000,-655.93767852,0.00025198,2]
[426964432,1783077034000,-655.93767852,0.00025198,2]
[426964447,1783077034000,-655.93767852,0.00025198,2]
[426964435,1783077034000,-655.93767852,0.00025198,2]
[426964440,1783077034000,-655.93767852,0.00025198,2]
[426964442,1783077034000,-655.93767852,0.00025198,2]
[426964448,1783077034000,-655.93767852,0.00025198,2]
[426964444,1783077034000,-655.93767852,0.00025198,2]
[426964441,1783077034000,-655.93767852,0.00025198,2]
[426964449,1783077034000,-655.93767852,0.00025198,2]
[426964452,1783077034000,-655.93767852,0.00025198,2]
[426964443,1783077034000,-655.93767852,0.00025198,2]
[426964450,1783077034000,-655.93767852,0.00025198,2]
[426964446,1783077034000,-655.93767852,0.00025198,2]
[426964451,1783077034000,-655.93767852,0.00025198,2]
[426964454,1783077034000,-655.93767852,0.00025198,2]
[426964458,1783077034000,-655.93767852,0.00025198,2]
[426964457,1783077034000,-655.93767852,0.00025198,2]
[426964463,1783077034000,-569.94222289,0.00025198,2]
[426964439,1783077034000,-655.93767852,0.00025198,2]
[426964459,1783077034000,-655.93767852,0.00025198,2]
[426964445,1783077034000,-655.93767852,0.00025198,2]
[426964437,1783077034000,-655.93767852,0.00025198,2]
[426964427,1783077034000,-655.93767852,0.00025198,2]
[426964438,1783077034000,-655.93767852,0.00025198,2]
[426964455,1783077034000,-655.93767852,0.00025198,2]
[426964415,1783077034000,-554.07821658,0.00025198,2]
[426964416,1783077034000,-554.07821658,0.00025198,2]
[426964417,1783077034000,-554.07821658,0.00025198,2]
[426964413,1783077034000,-554.07821658,0.00025198,2]
[426964412,1783077034000,-554.07821658,0.00025198,2]
[426964414,1783077034000,-554.07821658,0.00025198,2]
[426964418,1783077034000,-655.93767852,0.00025198,2]
[426964423,1783077034000,-655.93767852,0.00025198,2]
[426964428,1783077034000,-655.93767852,0.00025198,2]
[426964420,1783077034000,-655.93767852,0.00025198,2]
[426964421,1783077034000,-655.93767852,0.00025198,2]
[426964422,1783077034000,-655.93767852,0.00025198,2]
[426964419,1783077034000,-655.93767852,0.00025198,2]
[426964425,1783077034000,-655.93767852,0.00025198,2]
[426964424,1783077034000,-655.93767852,0.00025198,2]
[426964426,1783077034000,-655.93767852,0.00025198,2]
[426964430,1783077034000,-655.93767852,0.00025198,2]
[426964429,1783077034000,-655.93767852,0.00025198,2]
[426964431,1783077034000,-655.93767852,0.00025198,2]
[426964433,1783077034000,-655.93767852,0.00025198,2]
[426964434,1783077034000,-655.93767852,0.00025198,2]
[426964461,1783077034000,-655.93767852,0.00025198,2]
[426964460,1783077034000,-655.93767852,0.00025198,2]
[426964453,1783077034000,-655.93767852,0.00025198,2]
[426964484,1783077034000,-569.94222289,0.00025198,2]
[426964490,1783077034000,-569.94222289,0.00025198,2]
[426964500,1783077034000,-655.93767849,0.00025198,2]
[426964491,1783077034000,-569.94222289,0.00025198,2]
[426964489,1783077034000,-569.94222289,0.00025198,2]
[426964492,1783077034000,-569.94222289,0.00025198,2]
[426964497,1783077034000,-655.93767849,0.00025198,2]
[426964498,1783077034000,-655.93767849,0.00025198,2]
[426964496,1783077034000,-655.93767849,0.00025198,2]
[426964494,1783077034000,-655.93767849,0.00025198,2]
[426964493,1783077034000,-569.94222289,0.00025198,2]
[426964495,1783077034000,-655.93767849,0.00025198,2]
[426964499,1783077034000,-655.93767849,0.00025198,2]
[426964501,1783077034000,-655.93767849,0.00025198,2]
[426964502,1783077034000,-655.93767849,0.00025198,2]
[426964505,1783077034000,-694.94222289,0.00025198,2]
[426964504,1783077034000,-694.94222289,0.00025198,2]
[426964508,1783077034000,-165.0,0.00025198,2]
[426964503,1783077034000,-582.9167636,0.00025198,2]
[426964507,1783077034000,-694.94222289,0.00025198,2]
[426964506,1783077034000,-694.94222289,0.00025198,2]
[426964485,1783077034000,-569.94222289,0.00025198,2]
[426964483,1783077034000,-569.94222289,0.00025198,2]
[426964482,1783077034000,-569.94222289,0.00025198,2]
[426964477,1783077034000,-569.94222289,0.00025198,2]
[426964509,1783077034000,-4308.6465954,0.00025199,2]
[426964462,1783077034000,-655.93767852,0.00025198,2]
[426964465,1783077034000,-569.94222289,0.00025198,2]
[426964466,1783077034000,-569.94222289,0.00025198,2]
[426964475,1783077034000,-569.94222289,0.00025198,2]
[426964464,1783077034000,-569.94222289,0.00025198,2]
[426964467,1783077034000,-569.94222289,0.00025198,2]
[426964468,1783077034000,-569.94222289,0.00025198,2]
[426964469,1783077034000,-569.94222289,0.00025198,2]
[426964474,1783077034000,-569.94222289,0.00025198,2]
[426964472,1783077034000,-569.94222289,0.00025198,2]
[426964473,1783077034000,-569.94222289,0.00025198,2]
[426964471,1783077034000,-569.94222289,0.00025198,2]
[426964476,1783077034000,-569.94222289,0.00025198,2]
[426964479,1783077034000,-569.94222289,0.00025198,2]
[426964481,1783077034000,-569.94222289,0.00025198,2]
[426964480,1783077034000,-569.94222289,0.00025198,2]
[426964488,1783077034000,-569.94222289,0.00025198,2]
[426964487,1783077034000,-569.94222289,0.00025198,2]
[426964478,1783077034000,-569.94222289,0.00025198,2]
[426964486,1783077034000,-569.94222289,0.00025198,2]
[426964470,1783077034000,-569.94222289,0.00025198,2]
[426964456,1783077034000,-655.93767852,0.00025198,2]
[426964510,1783077035000,-648.0,0.00025199,2]
[426964512,1783077035000,-1022.84,0.00025199,2]
[426964513,1783077035000,-433.00598915,0.00025199,2]
[426964511,1783077035000,-16743.72255012,0.00025199,2]
[426964560,1783077038000,-105.84199999,0.00025,2]
[426964564,1783077038000,-2500.0,0.000251,2]
[426964566,1783077038000,-2058.65648607,0.00025199,2]
[426964565,1783077038000,-685.57029989,0.00025199,2]
[426964558,1783077038000,-154.1,0.00024658,2]
[426964567,1783077038000,-512.57426909,0.00025199,2]
[426964568,1783077038000,-4483.72661281,0.00025199,2]
[426964569,1783077038000,-2348.24458041,0.000252,2]
[426964570,1783077038000,-555.82564882,0.000252,2]
[426964563,1783077038000,-48.15800001,0.00025,2]
[426964741,1783077040000,-5414.0086,0.000252,2]
[426964739,1783077040000,-153.0,0.00025198,2]
[426964855,1783077042000,-15121.99957529,0.000252,2]
[426964856,1783077042000,-2745.32459999,0.000252,2]
[426964854,1783077042000,-3700.0,0.000252,2]
[426964861,1783077043000,-261.04942051,0.000252,2]
[426964862,1783077043000,-722.04225218,0.000252,2]
[426964860,1783077043000,-700.0,0.000252,2]
[426964875,1783077047000,-223.881002,0.00025284,14]
[426964874,1783077047000,-2009.0,0.00025204,2]
[426964873,1783077047000,-521.0453228,0.000252,2]
[426964876,1783077047000,-207.514802,0.00025284,14]
[426964879,1783077047000,-683.356,0.00025298,2]
[426964877,1783077047000,-294.741801,0.00025284,14]
[426964878,1783077047000,-1094.88152157,0.00025298,2]
[426964899,1783077213000,151.24630945,0.00030025,120]
[426964902,1783077475000,487.931334,0.0002863,120]
[426964903,1783077608000,555.0,0.00030136,120]
[426964904,1783077625000,444.0,0.00030136,120]
[426964905,1783077703000,540.2,0.00027462,120]
[426964906,1783077836000,151.24630945,0.00029525,120]
[426964907,1783078140000,2000.0,0.00030135,120]
[426964948,1783078232000,-463.18568631,0.00020869,2]
[426964949,1783078232000,-346.47208398,0.00020869,2]
[426964947,1783078232000,-199.5,0.00019689,2]
[426964943,1783078232000,-137.93984809,0.00016158,2]
[426964946,1783078232000,-194.92,0.00018177,2]
[426964950,1783078232000,-125.08194299,0.00020869,2]
[426964942,1783078232000,-187.56098345,0.00016158,2]
[426964939,1783078232000,-150.0,0.00015452,2]
[426964944,1783078232000,-500.0,0.00017479,2]
[426964945,1783078232000,-168.14,0.000175,2]
[426964940,1783078232000,-122.13288652,0.00016158,2]
[426964938,1783078232000,-195.04672423,0.00014689,2]
[426964937,1783078232000,-150.0,0.00014689,2]
[426964935,1783078232000,-200.004,0.00014689,2]
[426964936,1783078232000,-168.649501,0.00014689,2]
[426964941,1783078232000,-127.86711348,0.00016158,2]
[426964952,1783078232000,-351.02307539,0.00021024,2]
[426964957,1783078232000,-226.96902318,0.00021221,2]
[426964954,1783078232000,-181.17,0.00021142,2]
[426964958,1783078232000,-130.91248864,0.0002181,2]
[426964970,1783078232000,-54162.98040257,0.00021826,2]
[426964968,1783078232000,-27623.1656005,0.00021826,2]
[426964964,1783078232000,-150.0,0.00021825,2]
[426964966,1783078232000,-357.37428229,0.00021826,2]
[426964962,1783078232000,-544.02,0.00021811,2]
[426964965,1783078232000,-17189.08529347,0.00021826,2]
[426964967,1783078232000,-589.2407991,0.00021826,2]
[426964963,1783078232000,-1004.64815998,0.00021811,2]
[426964961,1783078232000,-984.68337832,0.00021811,2]
[426964959,1783078232000,-169.08751136,0.0002181,2]
[426964955,1783078232000,-13.86408857,0.00021221,2]
[426964956,1783078232000,-314.16688825,0.00021221,2]
[426964951,1783078232000,-1167.16377161,0.00021024,2]
[426964953,1783078232000,-296.00196113,0.00021024,2]
[426964960,1783078232000,-1082.0884617,0.00021811,2]
[426965000,1783078238000,-5389.84522728,0.00021826,2]
[426964997,1783078238000,-182.36795216,0.00019689,2]
[426964996,1783078238000,-150.0,0.00014689,2]
[426964999,1783078238000,-1852.42,0.00021061,2]
[426965002,1783078238000,-159.44,0.0002189,2]
[426965001,1783078238000,-41140.30839479,0.00021826,2]
[426965003,1783078238000,-727.31271118,0.00021921,2]
[426964998,1783078238000,-17.13204784,0.00019689,2]
[426965005,1783078238000,-555.82564882,0.00021921,2]
[426965007,1783078238000,-516.70824417,0.00021921,2]
[426965011,1783078238000,-540.2,0.0002197,2]
[426965009,1783078238000,-2003.16668259,0.00021921,2]
[426965006,1783078238000,-1075.45091538,0.00021921,2]
[426965010,1783078238000,-152.77,0.00021964,2]
[426965008,1783078238000,-545.85460464,0.00021921,2]
[426965004,1783078238000,-6831.97119322,0.00021921,2]
[426965051,1783078239000,-237.39047837,0.00022023,2]
[426965053,1783078239000,-500.0,0.00022023,2]
[426965047,1783078239000,-500.0,0.00022023,2]
[426965059,1783078239000,-500.0,0.00022023,2]
[426965058,1783078239000,-500.0,0.00022023,2]
[426965043,1783078239000,-500.0,0.00022023,2]
[426965055,1783078239000,-500.0,0.00022023,2]
[426965060,1783078239000,-500.0,0.00022023,2]
[426965039,1783078239000,-500.0,0.00022023,2]
[426965057,1783078239000,-500.0,0.00022023,2]
[426965049,1783078239000,-500.0,0.00022023,2]
[426965064,1783078239000,-3413.46,0.00022024,2]
[426965061,1783078239000,-500.0,0.00022023,2]
[426965067,1783078239000,-2438.87,0.00022048,2]
[426965070,1783078239000,-1000.0,0.00022705,2]
[426965065,1783078239000,-1909.49,0.00022024,2]
[426965062,1783078239000,-500.0,0.00022023,2]
[426965069,1783078239000,-217.96810301,0.00022373,2]
[426965066,1783078239000,-150.0,0.00022024,2]
[426965068,1783078239000,-3615.44,0.00022357,2]
[426965071,1783078239000,-187.16,0.00022771,2]
[426965036,1783078239000,-500.0,0.00022023,2]
[426965045,1783078239000,-500.0,0.00022023,2]
[426965035,1783078239000,-500.0,0.00022023,2]
[426965020,1783078239000,-500.0,0.00022023,2]
[426965037,1783078239000,-500.0,0.00022023,2]
[426965013,1783078239000,-1021.94084373,0.00022,10]
[426965023,1783078239000,-500.0,0.00022023,2]
[426965012,1783078239000,-200.0,0.00021999,2]
[426965014,1783078239000,-153.81912652,0.00022023,2]
[426965016,1783078239000,-248.19132339,0.00022023,2]
[426965015,1783078239000,-500.0,0.00022023,2]
[426965021,1783078239000,-500.0,0.00022023,2]
[426965017,1783078239000,-472.14218735,0.00022023,2]
[426965018,1783078239000,-500.0,0.00022023,2]
[426965019,1783078239000,-500.0,0.00022023,2]
[426965073,1783078239000,-3615.44,0.00022902,2]
[426965041,1783078239000,-500.0,0.00022023,2]
[426965022,1783078239000,-500.0,0.00022023,2]
[426965025,1783078239000,-500.0,0.00022023,2]
[426965029,1783078239000,-500.0,0.00022023,2]
[426965026,1783078239000,-500.0,0.00022023,2]
[426965031,1783078239000,-500.0,0.00022023,2]
[426965027,1783078239000,-500.0,0.00022023,2]
[426965028,1783078239000,-500.0,0.00022023,2]
[426965032,1783078239000,-500.0,0.00022023,2]
[426965030,1783078239000,-500.0,0.00022023,2]
[426965034,1783078239000,-556.33022102,0.00022023,2]
[426965033,1783078239000,-500.0,0.00022023,2]
[426965038,1783078239000,-500.0,0.00022023,2]
[426965024,1783078239000,-500.0,0.00022023,2]
[426965081,1783078239000,-151.0,0.00023298,2]
[426965063,1783078239000,-25268.26,0.00022024,2]
[426965078,1783078239000,-161.04832905,0.00023093,30]
[426965104,1783078239000,-157.172891,0.00024658,2]
[426965106,1783078239000,-181.52,0.00024658,2]
[426965105,1783078239000,-157.172891,0.00024658,2]
[426965107,1783078239000,-181.66,0.00024658,2]
[426965108,1783078239000,-249.0,0.00024689,2]
[426965112,1783078239000,-320.44515094,0.000247,2]
[426965114,1783078239000,-82180.72209529,0.00024713,2]
[426965109,1783078239000,-1243.2536935,0.000247,2]
[426965110,1783078239000,-6906.95879387,0.000247,2]
[426965111,1783078239000,-316.68144971,0.000247,2]
[426965115,1783078239000,-4251.08,0.00024713,30]
[426965117,1783078239000,-1023.88,0.000248,2]
[426965116,1783078239000,-540.2,0.00024716,2]
[426965118,1783078239000,-216.74224685,0.000248,2]
[426965119,1783078239000,-151.0,0.000249,2]
[426965121,1783078239000,-2013.0,0.000249,2]
[426965123,1783078239000,-164.12543848,0.00024902,2]
[426965120,1783078239000,-4682.83222499,0.000249,2]
[426965122,1783078239000,-287.43715858,0.00024902,2]
[426965126,1783078239000,-500.0,0.00024979,2]
[426965125,1783078239000,-197.41276968,0.00024902,2]
[426965124,1783078239000,-190.695165,0.00024902,2]
[426965075,1783078239000,-500.0,0.00022915,3]
[426965102,1783078239000,-176.38,0.00024658,2]
[426965096,1783078239000,-150.0,0.00024298,2]
[426965113,1783078239000,-262.4420186,0.000247,2]
[426965100,1783078239000,-309.147707,0.00024658,2]
[426965077,1783078239000,-4251.08,0.00023093,30]
[426965101,1783078239000,-1000.0,0.00024658,2]
[426965074,1783078239000,-444.0,0.00022914,2]
[426965072,1783078239000,-200.0,0.00022844,2]
[426965080,1783078239000,-390.34397431,0.00023298,2]
[426965076,1783078239000,-489.31,0.00023031,2]
[426965079,1783078239000,-5000.0,0.00023098,2]
[426965090,1783078239000,-1404.78854844,0.00024074,2]
[426965083,1783078239000,-3615.44,0.00023447,2]
[426965084,1783078239000,-163.36,0.00023508,2]
[426965091,1783078239000,-500.0,0.00024115,2]
[426965082,1783078239000,-4251.08,0.00023363,30]
[426965093,1783078239000,-4251.08,0.00024173,30]
[426965097,1783078239000,-549.06194756,0.00024352,2]
[426965103,1783078239000,-157.172891,0.00024658,2]
[426965092,1783078239000,-500.0,0.00024115,2]
[426965095,1783078239000,-3126.37,0.00024174,2]
[426965094,1783078239000,-14750.02,0.00024174,2]
[426965099,1783078239000,-159.44,0.00024626,2]
[426965098,1783078239000,-4251.08,0.00024443,30]
[426965087,1783078239000,-4251.08,0.00023903,30]
[426965086,1783078239000,-166.41,0.00023649,2]
[426965085,1783078239000,-4251.08,0.00023633,30]
[426965088,1783078239000,-3615.44,0.00023993,2]
[426965089,1783078239000,-1703.2922,0.00024015,2]
[426965164,1783078240000,-437.0,0.000251,7]
[426965161,1783078240000,-154.0,0.00025,2]
[426965165,1783078240000,-400.0,0.00025197,2]
[426965163,1783078240000,-156.23001746,0.00025013,2]
[426965162,1783078240000,-765.42948626,0.00025013,2]
[426965160,1783078240000,-156.0,0.00025,2]
[426965158,1783078240000,-153.0,0.00025,2]
[426965159,1783078240000,-391.0,0.00025,2]
[426965152,1783078240000,-401.0,0.00025,2]
[426965166,1783078240000,-500.0,0.00025197,2]
[426965156,1783078240000,-358.0,0.00025,2]
[426965168,1783078240000,-1080.5483954,0.00025198,2]
[426965178,1783078240000,-320.44515094,0.000252,2]
[426965169,1783078240000,-61839.8908684,0.00025198,2]
[426965167,1783078240000,-21834.254795,0.00025198,2]
[426965171,1783078240000,-976.960926,0.00025198,2]
[426965172,1783078240000,-6787.2247263,0.00025198,2]
[426965173,1783078240000,-6266.6894974,0.00025198,2]
[426965174,1783078240000,-152.0,0.000252,2]
[426965180,1783078240000,-31793.96,0.000252,2]
[426965177,1783078240000,-316.68144971,0.000252,2]
[426965175,1783078240000,-1243.2536935,0.000252,2]
[426965176,1783078240000,-6906.95879387,0.000252,2]
[426965154,1783078240000,-152.0,0.00025,2]
[426965170,1783078240000,-65780.6499365,0.00025198,2]
[426965150,1783078240000,-643.69000222,0.00025,2]
[426965128,1783078240000,-446.32938884,0.00024979,2]
[426965155,1783078240000,-153.0,0.00025,2]
[426965181,1783078240000,-152.0,0.000252,3]
[426965138,1783078240000,-176.46,0.0002498,2]
[426965130,1783078240000,-195.38582863,0.00024979,2]
[426965132,1783078240000,-500.0,0.00024979,2]
[426965135,1783078240000,-500.0,0.00024979,2]
[426965127,1783078240000,-598.41533719,0.00024979,2]
[426965133,1783078240000,-177.25855283,0.00024979,2]
[426965136,1783078240000,-500.0,0.00024979,2]
[426965129,1783078240000,-500.0,0.00024979,2]
[426965131,1783078240000,-150.58179783,0.00024979,2]
[426965134,1783078240000,-500.0,0.00024979,2]
[426965137,1783078240000,-500.0,0.00024979,2]
[426965139,1783078240000,-14203.42,0.0002498,2]
[426965141,1783078240000,-4251.08,0.00024983,30]
[426965148,1783078240000,-249.0,0.00025,2]
[426965140,1783078240000,-9999.99,0.0002498,2]
[426965145,1783078240000,-529.58,0.00024999,2]
[426965143,1783078240000,-510.43791301,0.00024999,2]
[426965142,1783078240000,-500.0,0.00024999,2]
[426965146,1783078240000,-1243.2536935,0.00025,2]
[426965144,1783078240000,-500.0,0.00024999,2]
[426965147,1783078240000,-6906.95879387,0.00025,2]
[426965149,1783078240000,-316.68144971,0.00025,2]
[426965157,1783078240000,-151.0,0.00025,2]
[426965151,1783078240000,-320.44515094,0.00025,2]
[426965153,1783078240000,-262.4420186,0.00025,2]
[426965182,1783078240000,-4251.08,0.00025254,30]
[426965185,1783078240000,-200.0,0.00025305,2]
[426965194,1783078240000,-644.35,0.0002546,7]
[426965211,1783078240000,-6906.95879387,0.000257,2]
[426965216,1783078240000,-500.0,0.00025721,2]
[426965215,1783078240000,-500.0,0.00025721,2]
[426965217,1783078240000,-500.0,0.00025721,2]
[426965213,1783078240000,-320.44515094,0.000257,2]
[426965220,1783078240000,-500.0,0.00025721,2]
[426965218,1783078240000,-518.69122523,0.00025721,2]
[426965221,1783078240000,-500.0,0.00025721,2]
[426965227,1783078240000,-500.0,0.00025721,2]
[426965223,1783078240000,-517.86537002,0.00025721,2]
[426965222,1783078240000,-500.0,0.00025721,2]
[426965229,1783078240000,-500.0,0.00025721,2]
[426965228,1783078240000,-500.0,0.00025721,2]
[426965226,1783078240000,-500.0,0.00025721,2]
[426965224,1783078240000,-500.0,0.00025721,2]
[426965225,1783078240000,-527.90478303,0.00025721,2]
[426965231,1783078240000,-500.0,0.00025721,2]
[426965235,1783078240000,-18421.2733858,0.00025722,2]
[426965233,1783078240000,-500.0,0.00025721,2]
[426965234,1783078240000,-500.0,0.00025721,2]
[426965230,1783078240000,-500.0,0.00025721,2]
[426965236,1783078240000,-2143.0876509,0.00025722,2]
[426965232,1783078240000,-500.0,0.00025721,2]
[426965238,1783078240000,-465.517869,0.00025782,14]
[426965179,1783078240000,-262.4420186,0.000252,2]
[426965210,1783078240000,-1243.2536935,0.000257,2]
[426965214,1783078240000,-262.4420186,0.000257,2]
[426965219,1783078240000,-500.0,0.00025721,2]
[426965209,1783078240000,-350.02,0.00025682,6]
[426965212,1783078240000,-316.68144971,0.000257,2]
[426965184,1783078240000,-765.42948626,0.00025287,2]
[426965183,1783078240000,-493.0,0.00025283,2]
[426965191,1783078240000,-203.17981631,0.00025395,2]
[426965187,1783078240000,-634.77169599,0.00025333,2]
[426965188,1783078240000,-1144.1609411,0.00025338,2]
[426965186,1783078240000,-400.0,0.00025305,2]
[426965237,1783078240000,-263.88128693,0.00025782,14]
[426965192,1783078240000,-291.36787396,0.00025395,2]
[426965190,1783078240000,-221.94320479,0.00025345,30]
[426965189,1783078240000,-152.0,0.00025343,5]
[426965195,1783078240000,-1404.78854839,0.00025473,2]
[426965196,1783078240000,-1243.2536935,0.000255,2]
[426965193,1783078240000,-4682.83222494,0.00025456,2]
[426965197,1783078240000,-6906.95879387,0.000255,2]
[426965208,1783078240000,-150.0,0.00025675,7]
[426965203,1783078240000,-156.23001746,0.00025561,2]
[426965201,1783078240000,-4251.08,0.00025524,30]
[426965199,1783078240000,-320.44515094,0.000255,2]
[426965204,1783078240000,-350.0,0.00025592,2]
[426965207,1783078240000,-634.77169599,0.00025667,2]
[426965206,1783078240000,-482.79,0.00025637,2]
[426965200,1783078240000,-262.4420186,0.000255,2]
[426965205,1783078240000,-584.82111809,0.00025599,2]
[426965198,1783078240000,-316.68144971,0.000255,2]
[426965202,1783078240000,-765.42948626,0.00025561,2]
[426965286,1783078241000,-765.42948626,0.00026109,2]
[426965287,1783078241000,-156.23001746,0.00026109,2]
[426965280,1783078241000,-391.0,0.00026,2]
[426965278,1783078241000,-151.0,0.00026,2]
[426965283,1783078241000,-4682.83222494,0.00026011,2]
[426965266,1783078241000,-4620.53191287,0.00026,2]
[426965274,1783078241000,-401.0,0.00026,2]
[426965269,1783078241000,-239.0,0.00026,2]
[426965265,1783078241000,-1137.31283554,0.00026,2]
[426965275,1783078241000,-157.0,0.00026,2]
[426965277,1783078241000,-358.0,0.00026,2]
[426965288,1783078241000,-574.87431716,0.00026156,2]
[426965282,1783078241000,-156.92818815,0.00026,2]
[426965291,1783078241000,-381.39033,0.00026156,2]
[426965281,1783078241000,-156.0,0.00026,2]
[426965284,1783078241000,-166.75,0.00026064,2]
[426965276,1783078241000,-154.0,0.00026,2]
[426965279,1783078241000,-153.0,0.00026,2]
[426965296,1783078241000,-608.11745562,0.00026161,2]
[426965292,1783078241000,-394.82553937,0.00026156,2]
[426965290,1783078241000,-236.42930106,0.00026156,2]
[426965295,1783078241000,-168.72953074,0.00026161,2]
[426965293,1783078241000,-152.26083562,0.00026157,2]
[426965297,1783078241000,-163.53200773,0.00026162,2]
[426965294,1783078241000,-158.51322321,0.00026161,2]
[426965289,1783078241000,-328.25087696,0.00026156,2]
[426965268,1783078241000,-634.77169599,0.00026,2]
[426965285,1783078241000,-500.0,0.00026064,2]
[426965271,1783078241000,-154.0,0.00026,2]
[426965250,1783078241000,-500.0,0.00025998,2]
[426965273,1783078241000,-249.0,0.00026,2]
[426965240,1783078241000,-73756.55999103,0.000258,2]
[426965239,1783078241000,-500.0,0.00025785,2]
[426965299,1783078241000,-162.29909187,0.00026162,2]
[426965241,1783078241000,-214.71742715,0.000258,2]
[426965245,1783078241000,-328.0,0.00025939,2]
[426965247,1783078241000,-2547.63488466,0.00025996,2]
[426965251,1783078241000,-500.0,0.00025998,2]
[426965243,1783078241000,-2100.0,0.000259,9]
[426965249,1783078241000,-500.0,0.00025998,2]
[426965246,1783078241000,-613.87319993,0.0002599,2]
[426965244,1783078241000,-1081.0,0.00025939,2]
[426965242,1783078241000,-765.42948626,0.00025835,2]
[426965248,1783078241000,-500.0,0.00025998,2]
[426965267,1783078241000,-2068.84214299,0.00026,5]
[426965261,1783078241000,-500.0,0.00025998,2]
[426965263,1783078241000,-500.0,0.00025998,2]
[426965255,1783078241000,-500.0,0.00025998,2]
[426965262,1783078241000,-500.0,0.00025998,2]
[426965258,1783078241000,-500.0,0.00025998,2]
[426965253,1783078241000,-500.0,0.00025998,2]
[426965257,1783078241000,-500.0,0.00025998,2]
[426965252,1783078241000,-500.0,0.00025998,2]
[426965256,1783078241000,-634.28008454,0.00025998,2]
[426965260,1783078241000,-500.0,0.00025998,2]
[426965254,1783078241000,-500.0,0.00025998,2]
[426965264,1783078241000,-4147.0,0.00026,5]
[426965272,1783078241000,-6906.95879387,0.00026,2]
[426965270,1783078241000,-270.0,0.00026,2]
[426965259,1783078241000,-500.0,0.00025998,2]
[426965300,1783078241000,-151.54377359,0.00026162,2]
[426965307,1783078241000,-263.050961,0.00026181,2]
[426965302,1783078241000,-806.03561476,0.00026177,2]
[426965333,1783078241000,-150.0,0.00026186,7]
[426965331,1783078241000,-150.0,0.00026186,7]
[426965330,1783078241000,-150.0,0.00026186,7]
[426965337,1783078241000,-150.0,0.00026186,7]
[426965334,1783078241000,-150.0,0.00026186,7]
[426965336,1783078241000,-150.0,0.00026186,7]
[426965340,1783078241000,-160.3,0.000262,14]
[426965342,1783078241000,-168.14,0.0002625,2]
[426965351,1783078241000,-151.0,0.000263,2]
[426965343,1783078241000,-151.0,0.0002625,7]
[426965344,1783078241000,-739.0,0.00026294,2]
[426965341,1783078241000,-625.02,0.00026224,7]
[426965298,1783078241000,-151.66293041,0.00026162,2]
[426965329,1783078241000,-150.0,0.00026186,7]
[426965347,1783078241000,-729.031628,0.000263,2]
[426965348,1783078241000,-729.031628,0.000263,2]
[426965346,1783078241000,-317.0,0.000263,2]
[426965349,1783078241000,-729.031628,0.000263,2]
[426965356,1783078241000,-175.565002,0.00026301,2]
[426965352,1783078241000,-151.0,0.000263,2]
[426965357,1783078241000,-150.0,0.00026325,7]
[426965360,1783078241000,-1978.0552303,0.00026398,2]
[426965354,1783078241000,-171.279758,0.000263,2]
[426965361,1783078241000,-233.6935255,0.000264,2]
[426965359,1783078241000,-765.42948626,0.00026383,2]
[426965358,1783078241000,-228.0,0.00026357,5]
[426965355,1783078241000,-151.0,0.000263,2]
[426965353,1783078241000,-151.0,0.000263,2]
[426965350,1783078241000,-729.031628,0.000263,2]
[426965335,1783078241000,-167.35133042,0.00026186,7]
[426965345,1783078241000,-6906.95879387,0.000263,2]
[426965327,1783078241000,-260.03445119,0.00026186,7]
[426965332,1783078241000,-150.0,0.00026186,7]
[426965310,1783078241000,-884.850308,0.00026181,2]